bitfinex/quotes_ETHUSD_20251130
["timestamp","ask_amount","ask_price","bid_price","bid_amount"]
[1764515037903,7.11453639,3035.6,3035.5,0.4711]
[1764515039384,7.61023639,3035.6,3035.5,0.001]
[1764515040303,8.01574039,3035.6,3035.5,0.001]
[1764515040476,8.48514039,3035.6,3035.5,0.001]
[1764515042810,4.08688956,3035.6,3035.5,0.4676]
[1764515042994,4.12806758,3035.6,3035.5,0.4676]
[1764515046082,4.62376758,3035.6,3035.5,0.001]
[1764515048308,5.09316758,3035.6,3035.5,0.001]
[1764515049393,4.62376758,3035.6,3035.5,0.001]
[1764515051625,5.34936169,3035.6,3035.5,0.001]
[1764515051797,4.85366169,3035.6,3035.5,0.001]
[1764515052131,4.85366169,3035.6,3035.5,0.4676]
[1764515055907,4.85366169,3035.6,3035.5,0.001]
[1764515056325,5.34936169,3035.6,3035.5,0.001]
[1764515056726,5.81876169,3035.6,3035.5,0.001]
[1764515056932,5.34936169,3035.6,3035.5,0.001]
[1764515057132,4.85366169,3035.6,3035.5,0.001]
[1764515057608,4.85366169,3035.6,3035.5,0.4676]
[1764515058011,4.85366169,3035.6,3035.5,0.9502]
[1764515059222,4.85366169,3035.6,3035.5,0.4676]
[1764515059623,4.85366169,3035.6,3035.5,0.9502]
[1764515060430,4.44815769,3035.6,3035.5,0.4676]
[1764515060636,7.88130852,3035.6,3035.5,0.9502]
[1764515060933,7.8401305,3035.6,3035.5,0.9502]
[1764515061118,0.002,3035.8,3035.5,0.9502]
[1764515061326,0.002,3035.8,3035.7,0.4666]
[1764515061707,0.0431753,3035.8,3035.7,0.9492]
[1764515063709,3.33719993,3035.8,3035.7,0.9492]
[1764515064135,1.13109811,3035.7,3035.5,0.001]
[1764515064340,5.82689471,3035.6,3035.5,0.001]
[1764515064505,6.30079471,3035.6,3035.5,0.001]
[1764515065730,9.59503637,3035.6,3035.5,0.001]
[1764515065944,9.55385835,3035.6,3035.5,0.001]
[1764515066422,16.45800918,3035.6,3035.5,0.001]
[1764515066622,6.12070752,3035.6,3035.5,0.001]
[1764515066824,6.16188554,3035.6,3035.5,0.001]
[1764515067037,1.13109811,3035.5,3034.9,0.49598]
[1764515067337,3.83865483,3035.0,3034.9,0.49598]
[1764515067509,0.613504,3035.0,3034.9,0.49598]
[1764515067706,0.613504,3035.0,3034.9,0.95158]
[1764515067907,3.90839691,3035.0,3034.9,0.95158]
[1764515068310,3.43315083,3035.2,3034.9,0.4556]
[1764515068564,0.208,3035.4,3034.4,3.29544998]
[1764515068565,3.47433563,3035.1,3034.4,3.29544998]
[1764515069041,4.19992974,3035.1,3035.0,0.4556]
[1764515069336,4.60543374,3035.1,3035.0,0.4556]
[1764515069536,5.06597711,3035.1,3035.0,0.4556]
[1764515070337,8.36076146,3035.1,3035.0,0.4556]
[1764515070644,8.31957666,3035.1,3035.0,0.4556]
[1764515071935,8.31957666,3035.1,3035.0,0.9545]
[1764515072442,8.4226543,3035.1,3035.0,0.9545]
[1764515074743,7.96211093,3035.1,3035.0,0.9545]
[1764515075038,0.82867175,3035.1,3035.0,0.9545]
[1764515075243,0.86985655,3035.1,3035.0,0.9545]
[1764515077044,0.82867175,3035.1,3035.0,0.9545]
[1764515080339,0.82867175,3035.1,3034.8,0.001]
[1764515080539,3.57741463,3035.0,3034.8,0.001]
[1764515080849,3.47433699,3035.0,3034.8,0.001]
[1764515081157,0.04118616,3035.0,3034.9,0.4556]
[1764515081449,3.57741272,3035.0,3034.9,0.4556]
[1764515081653,3.57741272,3035.0,3034.9,0.9545]
[1764515081828,0.14426189,3035.0,3034.9,0.9545]
[1764515082028,0.10307573,3035.0,3034.9,0.9545]
[1764515082625,0.10307491,3035.0,3034.9,0.9545]
[1764515083034,0.10307491,3035.1,3034.9,0.9545]
[1764515083236,0.14425835,3035.2,3035.1,0.651]
[1764515083535,4.16452826,3035.2,3035.1,0.651]
[1764515083758,0.86985246,3035.2,3035.1,0.651]
[1764515084657,0.86985246,3035.2,3035.1,0.4556]
[1764515084861,12.29105522,3035.2,3034.8,0.001]
[1764515085161,3.43315083,3034.9,3034.8,0.001]
[1764515085339,3.53622574,3034.9,3034.8,0.4999]
[1764515085654,3.53622574,3034.9,3034.8,0.9555]
[1764515085855,3.57741325,3034.9,3034.8,0.9555]
[1764515086268,3.57741325,3034.9,3034.8,0.4566]
[1764515086739,3.53622574,3034.9,3034.8,0.4566]
[1764515086935,3.57741325,3034.9,3034.8,0.4566]
[1764515087152,3.53622574,3034.9,3034.8,0.4566]
[1764515087361,3.57741325,3034.9,3034.8,0.4566]
[1764515088259,3.57741325,3034.9,3034.8,0.001]
[1764515088260,4.05111325,3034.9,3034.8,0.001]
[1764515088462,3.47433834,3034.9,3034.8,0.4566]
[1764515088646,3.47433563,3035.1,3034.8,0.9555]
[1764515088849,0.10307852,3035.0,3034.8,0.9555]
[1764515089049,0.04118751,3034.9,3034.8,0.9555]
[1764515089249,0.04118751,3034.9,3034.8,0.4999]
[1764515089456,0.04118751,3034.9,3034.8,0.9555]
[1764515090042,0.10307852,3035.0,3034.8,0.9555]
[1764515090242,0.10307852,3035.0,3034.9,0.9545]
[1764515090682,3.43905537,3035.1,3034.9,0.9545]
[1764515090850,0.10307852,3035.0,3034.9,0.4556]
[1764515091185,0.57677852,3035.0,3034.8,0.001]
[1764515091382,4.10479299,3034.9,3034.8,0.001]
[1764515091538,8.36716379,3034.9,3034.8,0.001]
[1764515091738,8.79987628,3034.9,3034.8,0.001]
[1764515091974,10.0860353,3034.9,3034.8,0.001]
[1764515092193,2.72833565,3034.9,3034.8,0.001]
[1764515092370,1.03667263,3034.9,3034.8,0.4566]
[1764515093234,0.31107852,3034.9,3034.8,0.4566]
[1764515094437,3.60608,3034.9,3034.8,0.4566]
[1764515095358,4.54338,3034.9,3034.8,0.001]
[1764515095750,4.58456751,3034.9,3034.8,0.001]
[1764515095961,5.86512422,3034.9,3034.8,0.001]
[1764515096269,7.12372233,3034.9,3034.8,0.001]
[1764515096485,7.08253482,3034.9,3034.8,0.001]
[1764515097353,6.01773482,3034.9,3034.8,0.485]
[1764515097585,4.77836562,3034.9,3034.8,0.485]
[1764515098490,4.77836562,3034.9,3034.8,0.001]
[1764515099877,4.77836562,3034.9,3034.8,0.485]
[1764515100576,4.37286162,3034.9,3034.8,0.485]
[1764515100874,1.07786539,3034.9,3034.8,0.9416]
[1764515101075,1.03667788,3034.9,3034.8,0.9416]
[1764515102371,4.33167936,3034.9,3034.8,0.485]
[1764515102571,1.88013613,3034.9,3034.8,0.485]
[1764515102745,5.33349336,3034.9,3034.8,0.001]
[1764515102948,5.79609336,3034.9,3034.8,0.001]
[1764515103177,5.928146,3034.9,3034.8,0.001]
[1764515104179,5.96933351,3034.9,3034.8,0.001]
[1764515104347,7.31581828,3034.9,3034.8,0.001]
[1764515104551,1.13109811,3034.6,3034.3,0.001]
[1764515104877,5.03669628,3034.4,3034.3,0.001]
[1764515105072,5.13978005,3034.4,3034.3,0.001]
[1764515105273,6.18753735,3034.4,3034.3,0.001]
[1764515105468,7.17811857,3034.4,3034.3,0.001]
[1764515105847,10.47366299,3034.4,3034.3,0.001]
[1764515107866,10.01106299,3034.4,3034.3,0.001]
[1764515108070,10.47366299,3034.4,3034.3,0.001]
[1764515108487,10.01106299,3034.4,3034.3,0.001]
[1764515108976,10.47366299,3034.4,3034.3,0.001]
[1764515113984,6.10546482,3034.4,3034.3,0.485]
[1764515114174,8.99519999,3034.4,3034.3,0.485]
[1764515114371,8.95400569,3034.4,3034.3,0.485]
[1764515115550,7.96342447,3034.4,3034.3,0.9416]
[1764515116255,7.96342447,3034.4,3034.3,0.485]
[1764515117166,7.96342447,3034.4,3034.3,0.9416]
[1764515117397,0.82867788,3034.4,3034.3,0.9416]
[1764515117778,0.72559411,3034.4,3034.3,0.9416]
[1764515118478,4.02113853,3034.4,3034.3,0.9416]
[1764515118674,4.16543342,3034.4,3034.3,0.001]
[1764515119073,5.04563742,3034.4,3034.3,0.001]
[1764515119995,4.57093742,3034.4,3034.3,0.001]
[1764515120175,4.16543342,3034.4,3034.3,0.9416]
[1764515120771,4.12423912,3034.4,3034.3,0.9416]
[1764515123000,0.10310059,3034.4,3034.3,0.9416]
[1764515123190,4.33213089,3034.5,3034.3,0.9416]
[1764515123399,0.10310059,3034.4,3034.3,0.001]
[1764515123789,0.31110059,3034.5,3034.3,0.4857]
[1764515124092,4.33213052,3034.5,3034.4,0.4847]
[1764515124482,4.33213052,3034.5,3034.4,0.9655]
[1764515124483,1.0366947,3034.5,3034.4,0.9655]
[1764515125017,4.33213052,3034.5,3034.4,0.9655]
[1764515125307,0.10310059,3034.5,3034.4,0.4847]
[1764515125507,0.002,3034.6,3034.4,0.9655]
[1764515125681,0.002,3034.6,3034.5,0.4847]
[1764515125882,4.02295366,3034.6,3034.5,0.4847]
[1764515126094,4.1260433,3034.6,3034.5,0.4847]
[1764515127324,4.16723489,3034.6,3034.5,0.4847]
[1764515129912,7.91929444,3034.6,3034.3,0.001]
[1764515130128,0.10308964,3034.5,3034.3,0.001]
[1764515130280,0.2491943,3034.4,3034.3,0.001]
[1764515130485,0.7058943,3034.4,3034.3,0.001]
[1764515130701,2.02577039,3034.4,3034.3,0.001]
[1764515130912,3.6478402,3034.4,3034.3,0.4857]
[1764515131092,3.54473872,3034.4,3034.3,0.4857]
[1764515131280,3.64783263,3034.4,3034.3,0.4857]
[1764515133415,3.60663833,3034.4,3034.3,0.9665]
[1764515133624,3.50354442,3034.4,3034.3,0.9665]
[1764515134209,3.60664039,3034.4,3034.3,0.9665]
[1764515134410,3.50354442,3034.4,3034.3,0.9665]
[1764515134925,3.96024442,3034.4,3034.3,0.001]
[1764515135223,5.25783489,3034.4,3034.3,0.001]
[1764515135525,6.9169273,3034.4,3034.3,0.001]
[1764515135683,6.875733,3034.4,3034.3,0.001]
[1764515135890,6.388933,3034.4,3034.3,0.001]
[1764515136086,6.4301273,3034.4,3034.3,0.001]
[1764515137440,6.9169273,3034.4,3034.3,0.001]
[1764515137717,3.83920217,3034.2,3034.1,0.001]
[1764515137920,4.06359608,3034.2,3034.1,0.001]
[1764515138116,4.55039608,3034.2,3034.1,0.001]
[1764515138332,5.27599019,3034.2,3034.1,0.001]
[1764515138926,5.31718721,3034.2,3034.1,0.001]
[1764515139093,6.71335543,3034.2,3034.1,0.001]
[1764515139293,6.67215841,3034.2,3034.1,0.001]
[1764515139493,9.96792006,3034.2,3034.1,0.001]
[1764515140338,1.13109811,3034.1,3033.0,0.197]
[1764515140543,3.43369817,3033.3,3033.0,0.197]
[1764515140752,3.43369817,3033.3,3033.0,0.6778]
[1764515141649,3.29684821,3033.2,3033.0,0.6778]
[1764515141853,6.59369642,3033.2,3032.7,0.1865]
[1764515142031,6.59369642,3033.2,3032.8,0.4808]
[1764515142236,3.29684821,3033.2,3033.1,0.4847]
[1764515143050,5.90816534,3033.2,3032.7,0.1865]
[1764515143234,3.43369817,3032.8,3032.7,0.6673]
[1764515143740,0.208,3033.0,3032.7,1.152]
[1764515143946,6.80214994,3033.0,3032.7,0.6712]
[1764515144119,6.80214994,3033.0,3032.7,0.4847]
[1764515144440,3.43369817,3032.8,3032.7,0.4847]
[1764515145006,3.43369817,3032.8,3032.7,0.9655]
[1764515145228,0.405504,3032.7,3031.4,0.1865]
[1764515145422,0.405504,3032.7,3031.4,0.6673]
[1764515145423,3.43369817,3032.1,3031.4,0.6673]
[1764515145715,0.72559411,3032.1,3032.0,0.4847]
[1764515145914,4.23263836,3032.1,3032.0,0.4847]
[1764515146242,0.93459411,3032.1,3032.0,0.4847]
[1764515146745,4.36829228,3032.1,3032.0,0.4847]
[1764515146950,7.66633653,3032.1,3032.0,0.9655]
[1764515147261,0.405504,3032.0,3031.5,0.4808]
[1764515147555,0.405504,3032.0,3031.4,0.1865]
[1764515147556,3.43369817,3031.7,3031.4,0.1865]
[1764515148050,3.43369817,3031.7,3031.4,0.6673]
[1764515148268,6.73217931,3031.7,3031.6,0.4847]
[1764515148558,6.73217757,3031.7,3031.6,0.4847]
[1764515148718,3.89039817,3031.7,3031.4,0.1865]
[1764515148915,7.18887757,3031.7,3031.2,0.4808]
[1764515149134,7.39787757,3031.7,3031.2,0.4808]
[1764515149344,0.4567,3031.3,3031.0,0.1865]
[1764515149662,0.1031,3031.6,3029.8,0.6673]
[1764515149663,3.88679817,3031.1,3030.6,0.6673]
[1764515149960,3.43369817,3030.8,3030.6,0.1865]
[1764515150254,0.209,3030.7,3030.4,0.4808]
[1764515150612,0.209,3030.7,3030.6,0.4847]
[1764515150826,0.209,3030.7,3029.9,3.30042379]
[1764515150827,0.93459411,3030.7,3030.1,0.4808]
[1764515151232,0.93459411,3030.7,3030.1,0.4308]
[1764515151950,0.93459411,3030.7,3030.6,0.4847]
[1764515152513,0.209,3030.7,3030.6,0.4847]
[1764515152910,0.99148479,3031.2,3030.6,0.4847]
[1764515153111,0.405504,3031.3,3030.1,9.9006515]
[1764515153112,0.405504,3031.4,3031.1,0.5892]
[1764515153350,0.209,3031.3,3031.1,0.5892]
[1764515153551,0.40160199,3031.3,3031.1,0.5892]
[1764515153730,0.209,3031.3,3031.2,0.9481]
[1764515154332,0.73820776,3031.7,3031.2,0.9481]
[1764515154552,0.73820776,3031.7,3031.1,0.1365]
[1764515154553,0.209,3031.5,3031.3,0.4954]
[1764515154816,0.209,3031.5,3030.5,0.209]
[1764515155026,0.209,3031.5,3030.7,0.4954]
[1764515155266,0.72559411,3031.3,3030.6,0.4954]
[1764515155639,0.72559411,3031.3,3031.2,0.4527]
[1764515155859,0.209,3031.7,3031.2,1.1415]
[1764515156027,0.209,3031.7,3031.2,3.98776313]
[1764515156228,0.209,3031.7,3031.6,0.4527]
[1764515157366,0.6824,3031.7,3031.3,0.4954]
[1764515157823,0.6824,3031.7,3031.2,0.1934]
[1764515157824,3.2985882,3031.6,3031.2,0.1934]
[1764515158023,7.46527522,3031.6,3030.8,0.4954]
[1764515158226,0.04123371,3031.5,3030.8,0.4954]
[1764515158692,0.04123371,3031.5,3030.5,3.29978125]
[1764515158693,0.51123371,3031.5,3030.5,3.79518125]
[1764515158859,0.405504,3031.2,3030.6,0.4954]
[1764515159032,0.6972225,3031.1,3030.3,0.4954]
[1764515159848,0.405504,3030.8,3030.3,0.4954]
[1764515160046,0.209,3030.7,3030.1,0.4954]
[1764515160451,0.209,3030.7,3030.0,0.001]
[1764515160763,0.209,3030.7,3030.0,3.79671889]
[1764515160962,1.13942691,3030.7,3030.0,3.79671889]
[1764515161150,1.13942691,3030.7,3030.0,0.001]
[1764515161354,0.405504,3030.6,3030.0,0.001]
[1764515161551,0.875504,3030.6,3030.0,0.001]
[1764515161758,0.4734,3030.1,3030.0,0.001]
[1764515162071,10.43779821,3030.1,3030.0,0.001]
[1764515162362,0.405504,3030.0,3029.7,0.001]
[1764515162565,0.598104,3029.8,3029.7,0.001]
[1764515162947,1.068104,3029.8,3029.7,0.001]
[1764515163269,1.277104,3029.8,3029.7,0.001]
[1764515163467,0.807104,3029.8,3029.7,0.001]
[1764515163681,0.807104,3029.8,3029.7,0.4537]
[1764515163682,0.209,3029.8,3029.7,0.4537]
[1764515163966,0.900904,3030.4,3029.7,0.9491]
[1764515164134,0.4734,3029.8,3029.7,0.001]
[1764515164335,2.04742196,3030.3,3029.7,0.001]
[1764515164555,0.209,3030.2,3029.7,0.9491]
[1764515164757,0.209,3030.1,3029.7,0.9491]
[1764515164957,0.209,3030.1,3029.8,0.4954]
[1764515165179,0.209,3030.1,3030.0,0.4527]
[1764515165979,0.405504,3030.6,3030.0,0.4527]
[1764515166134,0.72559411,3030.3,3029.7,0.001]
[1764515166466,0.52023151,3030.2,3029.7,0.001]
[1764515167058,0.99023151,3030.2,3029.7,0.001]
[1764515167260,0.4734,3029.8,3029.7,0.001]
[1764515167461,0.6824,3029.8,3029.7,0.001]
[1764515168345,3.98294789,3029.8,3029.7,0.001]
[1764515168555,6.03445221,3029.8,3029.7,0.001]
[1764515169175,6.76004632,3029.8,3029.7,0.001]
[1764515169550,2.98949843,3029.8,3029.7,0.001]
[1764515169985,2.51609843,3029.8,3029.7,0.4537]
[1764515170142,0.47,3030.7,3029.7,0.9491]
[1764515170484,0.72559411,3030.5,3029.8,0.4527]
[1764515170780,0.878904,3029.8,3029.7,0.001]
[1764515170994,1.69602591,3029.8,3029.7,0.001]
[1764515171148,2.16602591,3029.8,3029.7,0.001]
[1764515171502,1.48702591,3029.8,3029.7,0.001]
[1764515171777,6.59935326,3030.6,3029.7,0.9491]
[1764515171975,0.4954,3030.4,3029.8,0.4527]
[1764515172178,1.07909768,3030.5,3029.7,0.4964]
[1764515172179,0.72559411,3030.1,3029.7,0.001]
[1764515172346,0.614504,3030.0,3029.7,0.001]
[1764515173453,0.209,3030.0,3029.9,0.4527]
[1764515173653,1.10999591,3030.0,3029.7,0.001]
[1764515173859,0.67785003,3030.0,3029.7,0.001]
[1764515174347,0.878904,3029.8,3029.7,0.001]
[1764515174967,1.39016084,3029.8,3029.7,0.001]
[1764515175479,1.49342288,3029.8,3029.7,0.001]
[1764515175778,2.36649779,3029.8,3029.7,0.001]
[1764515176282,6.39263979,3029.8,3029.7,0.001]
[1764515177181,5.92263979,3029.8,3029.7,0.001]
[1764515177578,6.13163979,3029.8,3029.7,0.001]
[1764515178585,6.60163979,3029.8,3029.7,0.001]
[1764515179985,6.13163979,3029.8,3029.7,0.001]
[1764515180184,6.60163979,3029.8,3029.7,0.001]
[1764515180381,6.13163979,3029.8,3029.7,0.001]
[1764515181681,2.3576919,3029.8,3029.7,0.4537]
[1764515181879,5.65823979,3029.8,3029.7,0.4537]
[1764515182084,2.3576919,3029.8,3029.7,0.4537]
[1764515182250,2.31643506,3029.8,3029.7,0.4537]
[1764515182452,6.09038295,3029.8,3029.7,0.001]
[1764515183182,5.61698295,3029.8,3029.7,0.001]
[1764515183967,6.11538295,3029.8,3029.7,0.001]
[1764515184284,6.58008295,3029.8,3029.7,0.001]
[1764515185161,6.11538295,3029.8,3029.7,0.001]
[1764515185549,6.15663979,3029.8,3029.7,0.001]
[1764515185754,6.62133979,3029.8,3029.7,0.001]
[1764515188559,5.40798295,3029.8,3029.7,0.4923]
[1764515188763,1.44336015,3029.8,3029.7,0.4923]
[1764515189086,4.74390804,3029.8,3029.7,0.4923]
[1764515189259,4.74390804,3029.8,3029.7,0.001]
[1764515189774,5.24230804,3029.8,3029.7,0.001]
[1764515190161,5.28356488,3029.8,3029.7,0.001]
[1764515190375,6.18472758,3029.8,3029.7,0.001]
[1764515190789,6.64942758,3029.8,3029.7,0.001]
[1764515191292,6.18472758,3029.8,3029.7,0.001]
[1764515192095,5.23956674,3029.8,3029.7,0.4923]
[1764515192527,5.70700804,3029.8,3029.7,0.001]
[1764515192825,6.27559064,3029.8,3029.7,0.001]
[1764515193329,1.13109811,3029.7,3029.1,0.4283]
[1764515193636,0.14452161,3029.6,3029.1,0.4283]
[1764515193793,0.405504,3029.4,3028.1,6.60480168]
[1764515193990,0.31226204,3029.3,3028.1,6.60480168]
[1764515194228,0.10326204,3029.2,3028.1,6.60480168]
[1764515194433,0.10326204,3029.1,3028.1,6.60480168]
[1764515194644,0.10326204,3029.0,3028.1,6.60480168]
[1764515194937,3.30138554,3029.1,3028.1,6.60480168]
[1764515195143,0.10327621,3029.0,3028.9,0.4913]
[1764515195795,0.10327621,3029.1,3028.9,0.9686]
[1764515196094,0.10326953,3029.0,3028.7,0.4773]
[1764515196291,0.10326953,3029.2,3028.9,0.4913]
[1764515196519,0.10326953,3029.1,3028.9,0.4913]
[1764515196732,0.10326953,3029.0,3028.9,0.4773]
[1764515196894,0.82886364,3029.2,3028.9,0.4773]
[1764515197097,0.10326953,3029.1,3028.9,0.9686]
[1764515197297,0.10326953,3029.0,3028.4,3.30198673]
[1764515197498,0.10326953,3029.1,3028.9,0.4773]
[1764515197799,0.10326953,3029.0,3028.9,0.4773]
[1764515198007,0.72559411,3029.2,3028.9,0.4773]
[1764515198008,0.10326953,3029.1,3028.9,0.4773]
[1764515198211,0.10326953,3029.0,3028.9,0.4773]
[1764515198410,0.10326953,3029.1,3028.9,0.4773]
[1764515198748,0.10326953,3029.0,3028.7,0.4773]
[1764515198909,0.10326953,3029.1,3028.7,0.4773]
[1764515199112,3.30131092,3029.1,3028.9,0.4913]
[1764515199529,3.96155142,3029.1,3028.9,0.4913]
[1764515199698,0.6602405,3029.1,3028.9,0.4913]
[1764515199898,3.30121593,3029.2,3028.9,0.4913]
[1764515200099,3.34235725,3029.3,3028.5,3.77922184]
[1764515200100,0.10327351,3029.1,3028.7,0.4773]
[1764515200331,3.4044791,3029.2,3028.7,0.4773]
[1764515200536,0.10327351,3029.1,3029.0,0.4913]
[1764515201499,3.40447527,3029.2,3029.0,0.4913]
[1764515201705,0.10327351,3029.1,3029.0,0.4913]
[1764515202136,0.10327351,3029.1,3029.0,0.9686]
[1764515202436,0.10327351,3029.3,3029.0,0.9686]
[1764515202606,0.10327351,3029.2,3029.0,0.4773]
[1764515202807,0.10327351,3029.3,3029.0,0.4773]
[1764515203037,0.10327351,3029.2,3029.0,0.4773]
[1764515203239,3.40437433,3029.3,3029.0,0.4773]
[1764515203441,0.10327351,3029.2,3029.0,0.4773]
[1764515203608,0.82886762,3029.2,3029.0,0.4773]
[1764515203810,0.10327351,3029.1,3029.0,0.4773]
[1764515204441,0.82886762,3029.2,3029.0,0.9686]
[1764515204631,0.10327351,3029.1,3029.0,0.4773]
[1764515205135,0.10327351,3029.1,3029.0,0.9686]
[1764515205335,0.72559411,3029.3,3029.0,0.4913]
[1764515205541,0.72559411,3029.3,3029.2,0.4913]
[1764515205739,0.82886706,3029.3,3029.2,0.4913]
[1764515206241,0.10327295,3029.3,3029.2,0.9686]
[1764515206411,0.87012663,3029.6,3029.2,0.9686]
[1764515206613,0.10327295,3029.5,3029.3,0.4773]
[1764515207012,0.10327295,3029.6,3029.4,0.4913]
[1764515207248,0.10327295,3029.5,3029.3,0.4773]
[1764515207435,0.10327295,3029.6,3028.9,3.30152529]
[1764515207645,0.10327295,3029.5,3028.9,3.65257782]
[1764515207843,0.10327295,3029.5,3029.0,0.4773]
[1764515208059,0.10327295,3029.6,3029.4,0.4913]
[1764515208359,0.10327295,3029.5,3029.4,0.4913]
[1764515208725,3.40404135,3029.6,3029.4,0.4913]
[1764515209059,0.64293388,3029.5,3028.7,0.4773]
[1764515209275,0.64293388,3029.5,3028.0,0.1934]
[1764515209276,0.405504,3028.7,3028.0,0.1934]
[1764515209569,1.13109811,3028.5,3027.6,3.97360793]
[1764515209750,0.10327295,3028.4,3027.9,0.4773]
[1764515210055,0.10327295,3028.5,3028.4,0.4913]
[1764515210231,0.209,3028.6,3027.9,0.4773]
[1764515210431,0.10327295,3028.5,3027.9,0.4773]
[1764515210826,0.82886706,3028.5,3027.6,3.49630793]
[1764515211054,3.40538815,3028.4,3027.7,3.78011548]
[1764515211347,3.3021152,3028.4,3027.7,3.78011548]
[1764515211754,3.3021152,3028.4,3027.7,0.4773]
[1764515212258,0.405504,3028.4,3027.7,3.78012369]
[1764515213144,0.405504,3028.4,3027.8,0.4689]
[1764515213451,0.50881212,3028.4,3027.8,0.4689]
[1764515213621,0.405504,3028.4,3027.8,0.4689]
[1764515214221,1.32352291,3028.5,3027.8,0.4689]
[1764515214617,3.81795493,3028.8,3028.4,0.6432]
[1764515214618,3.70721493,3028.8,3028.4,0.6432]
[1764515214845,0.31230122,3028.7,3028.5,0.4955]
[1764515215028,0.72559411,3028.6,3028.5,0.4955]
[1764515215233,0.82889533,3028.6,3028.5,0.4955]
[1764515216252,0.10330122,3028.6,3028.5,0.4955]
[1764515216427,0.31230122,3028.7,3028.5,0.4955]
[1764515216623,0.72559411,3029.0,3028.6,0.4955]
[1764515216954,0.10329502,3028.9,3028.7,0.4955]
[1764515217154,0.82888913,3028.9,3028.7,0.4955]
[1764515217325,0.10329502,3028.8,3028.7,0.4955]
[1764515217520,0.25026774,3029.0,3028.7,0.4955]
[1764515217521,0.72559411,3028.9,3028.7,0.4955]
[1764515218155,0.4613,3028.8,3028.4,0.1477]
[1764515218347,0.4613,3028.8,3028.4,0.6166]
[1764515218922,0.72559411,3028.9,3028.7,0.4955]
[1764515219419,4.02720486,3028.9,3028.7,0.4955]
[1764515219622,0.72559411,3028.9,3028.7,0.4955]
[1764515219852,0.4613,3028.8,3028.2,3.30225689]
[1764515221750,1.18689411,3028.8,3028.2,3.77115537]
[1764515221947,0.72559411,3028.8,3028.2,3.77115537]
[1764515222148,0.72559411,3028.8,3028.2,3.30225537]
[1764515222354,0.72559411,3028.8,3028.3,0.4689]
[1764515222671,4.02727899,3028.8,3028.3,0.4689]
[1764515222958,0.72559411,3028.9,3028.7,0.4955]
[1764515223269,1.52779597,3028.9,3028.4,3.3020737]
[1764515223424,0.25026774,3029.0,3028.5,0.4689]
[1764515223425,0.93459411,3029.0,3028.5,0.4689]
[1764515223778,0.93459411,3029.0,3028.9,0.4955]
[1764515223935,4.33930178,3029.0,3028.9,0.4955]
[1764515224140,4.38056952,3029.0,3028.9,0.4955]
[1764515224340,4.33930178,3029.0,3028.9,0.4955]
[1764515224527,0.72559411,3028.9,3028.3,0.4689]
[1764515224860,0.2558,3028.2,3027.7,0.4689]
[1764515225162,0.209,3028.3,3027.7,0.4689]
[1764515225340,0.209,3028.3,3028.1,0.4955]
[1764515225655,0.209,3028.3,3028.2,0.6432]
[1764515225857,0.72559411,3028.7,3028.2,0.6432]
[1764515226038,0.72559411,3028.8,3028.6,0.4955]
[1764515226359,0.209,3028.7,3028.6,0.4955]
[1764515226536,0.209,3028.7,3028.3,0.4689]
[1764515226741,0.209,3028.7,3028.6,0.4955]
[1764515228859,0.10329262,3028.8,3028.6,0.4955]
[1764515228860,0.10329262,3028.8,3028.6,0.9644]
[1764515229069,0.209,3029.0,3028.7,0.9644]
[1764515229253,0.31229002,3029.0,3028.9,0.4955]
[1764515229428,0.209,3029.0,3028.9,0.4955]
[1764515229629,0.31229002,3029.0,3028.9,0.4955]
[1764515229842,1.03788413,3029.0,3028.9,0.4955]
[1764515230047,0.31229002,3029.0,3028.9,0.4955]
[1764515230655,0.72559411,3028.9,3028.4,0.4689]
[1764515230878,0.93459411,3029.0,3028.9,0.4955]
[1764515231076,1.46147528,3029.0,3028.9,0.4955]
[1764515231279,0.4613,3029.0,3028.2,3.91885417]
[1764515231459,0.4613,3029.0,3028.3,3.9800581]
[1764515231848,0.4613,3029.0,3028.4,0.4689]
[1764515232974,3.30133946,3029.1,3028.4,0.4689]
[1764515233477,0.209,3029.2,3029.0,0.4955]
[1764515233650,1.14916638,3029.1,3028.5,3.30196466]
[1764515233851,0.72559411,3029.1,3028.6,0.4689]
[1764515235054,0.209,3029.2,3029.0,0.4955]
[1764515235291,0.209,3029.2,3029.1,0.4955]
[1764515235682,0.31228285,3029.2,3029.1,0.4955]
[1764515235866,4.60066822,3029.2,3028.5,0.001]
[1764515236176,0.46006682,3029.1,3028.5,3.30295444]
[1764515236554,0.46006682,3029.1,3028.5,3.77185444]
[1764515237186,0.5633479,3029.1,3028.5,3.77185444]
[1764515238290,0.72559411,3029.8,3029.0,0.4955]
[1764515238490,0.10326719,3029.7,3029.1,0.4955]
[1764515239152,0.10326719,3029.7,3028.5,6.6049191]
[1764515239153,0.4613,3029.2,3028.5,6.6049191]
[1764515239488,0.31226719,3029.5,3028.6,0.6779]
[1764515239687,0.31226719,3029.5,3029.1,0.4955]
[1764515240350,3.6131599,3029.5,3029.1,0.4955]
[1764515240656,3.50989271,3029.5,3029.1,0.4955]
[1764515240877,0.209,3029.5,3029.1,0.4955]
[1764515241160,0.31226398,3029.5,3029.1,0.4955]
[1764515241665,0.31226398,3029.5,3029.1,0.9644]
[1764515241866,0.31226398,3029.5,3029.1,0.4955]
[1764515242660,0.31226398,3029.5,3029.1,0.954]
[1764515242855,0.31226398,3029.5,3029.1,0.4955]
[1764515243174,0.31226398,3029.5,3029.1,3.79672991]
[1764515243376,0.209,3029.5,3029.4,0.4812]
[1764515243855,0.10326371,3029.6,3029.4,0.4812]
[1764515244051,0.209,3029.8,3029.4,0.4585]
[1764515244288,0.31226371,3029.8,3029.5,0.4812]
[1764515244475,0.31226371,3029.8,3029.7,0.4812]
[1764515244677,0.209,3029.8,3029.7,0.4812]